Workbook

Sheet 시청홈페이지(일반회계)
A1: 2025년 12월 | H1: 지방세외수입 징수보고서(일반회계)
A2: ○ 자치단체명 : 전라남도 여수시
O3: (단위: 원, %)
A4: 항목 | E4: ⓐ징수결정액 (본월분) | F4: ①징수결정액 (누계) | G4: ⓑ수납액 (본월분) | H4: ②수납액 (누계) | I4: 과오납액 (본월분) | J4: ③과오납액 (누계) | K4: 불납결손액 (본월분) | L4: ④불납결손액 (누계) | M4: 미수납액 (①-②-④) | N4: 당월징수율 (ⓑ/ⓐ) | O4: 누적징수율 (②/①)
A5: 합계 | E5: =E6+E32+E48+E57 -> 5,165,049,756 | F5: =F6+F32+F48+F57 -> 92,076,080,733 | G5: 5,805,093,474 | H5: 73,153,129,986 | I5: 27,212,010 | J5: 177,177,821 | K5: 493,159,440 | L5: 769,342,760 | M5: =F5-H5-L5 -> 18,153,607,987 | N5: =ROUND(G5/E5*100,2) -> 112.39 | O5: =ROUND(H5/F5*100,2) -> 79.45
A6: 경상적 세외수입 | E6: =SUM(E7:E31) -> 3,275,189,446 | F6: =SUM(F7:F31) -> 33,242,396,458 | G6: 3,331,992,764 | H6: 32,855,300,538 | I6: 19,264,290 | J6: 71,874,370 | K6: 0 | L6: 0 | M6: =F6-H6-L6 -> 387,095,920 | N6: =ROUND(G6/E6*100,2) -> 101.73 | O6: =ROUND(H6/F6*100,2) -> 98.84
B7: 재산임대수입 | C7: 국유재산임대료 | E7: =VLOOKUP($C7,'[1]징수보고서(지난년도제외)'!$A$3:$O$101,4,FALSE) -> (2,595,930) | F7: =VLOOKUP($C7,'[1]징수보고서(지난년도제외)'!$A$3:$O$101,5,FALSE) -> 240,858,100 | G7: =VLOOKUP($C7,'[1]징수보고서(지난년도제외)'!$A$3:$O$101,6,FALSE) -> 849,860 | H7: =VLOOKUP($C7,'[1]징수보고서(지난년도제외)'!$A$3:$O$101,7,FALSE) -> 239,134,260 | I7: =VLOOKUP($C7,'[1]징수보고서(지난년도제외)'!$A$3:$O$101,8,FALSE) -> 0 | J7: =VLOOKUP($C7,'[1]징수보고서(지난년도제외)'!$A$3:$O$101,9,FALSE) -> 0 | K7: =VLOOKUP($C7,'[1]징수보고서(지난년도제외)'!$A$3:$O$101,10,FALSE) -> 0 | L7: =VLOOKUP($C7,'[1]징수보고서(지난년도제외)'!$A$3:$O$101,11,FALSE) -> 0 | M7: =F7-H7-L7 -> 1,723,840 | N7: =ROUND(G7/E7*100,2) -> -32.74 | O7: 99.28
C8: 공유재산임대료 | E8: =VLOOKUP($C8,'[1]징수보고서(지난년도제외)'!$A$3:$O$101,4,FALSE) -> 181,358,550 | F8: =VLOOKUP($C8,'[1]징수보고서(지난년도제외)'!$A$3:$O$101,5,FALSE) -> 900,465,140 | G8: =VLOOKUP($C8,'[1]징수보고서(지난년도제외)'!$A$3:$O$101,6,FALSE) -> 76,934,790 | H8: =VLOOKUP($C8,'[1]징수보고서(지난년도제외)'!$A$3:$O$101,7,FALSE) -> 770,777,170 | I8: =VLOOKUP($C8,'[1]징수보고서(지난년도제외)'!$A$3:$O$101,8,FALSE) -> 14,214,740 | J8: =VLOOKUP($C8,'[1]징수보고서(지난년도제외)'!$A$3:$O$101,9,FALSE) -> 15,829,450 | K8: =VLOOKUP($C8,'[1]징수보고서(지난년도제외)'!$A$3:$O$101,10,FALSE) -> 0 | L8: =VLOOKUP($C8,'[1]징수보고서(지난년도제외)'!$A$3:$O$101,11,FALSE) -> 0 | M8: 129,687,970 | N8: 42.42 | O8: 85.6
B9: 사용료수입 | C9: 도로사용료 | E9: =VLOOKUP($C9,'[1]징수보고서(지난년도제외)'!$A$3:$O$101,4,FALSE) -> 66,200,550 | F9: =VLOOKUP($C9,'[1]징수보고서(지난년도제외)'!$A$3:$O$101,5,FALSE) -> 2,575,322,870 | G9: =VLOOKUP($C9,'[1]징수보고서(지난년도제외)'!$A$3:$O$101,6,FALSE) -> 143,802,570 | H9: =VLOOKUP($C9,'[1]징수보고서(지난년도제외)'!$A$3:$O$101,7,FALSE) -> 2,444,077,770 | I9: =VLOOKUP($C9,'[1]징수보고서(지난년도제외)'!$A$3:$O$101,8,FALSE) -> 78,420 | J9: =VLOOKUP($C9,'[1]징수보고서(지난년도제외)'!$A$3:$O$101,9,FALSE) -> 1,440,070 | K9: =VLOOKUP($C9,'[1]징수보고서(지난년도제외)'!$A$3:$O$101,10,FALSE) -> 0 | L9: =VLOOKUP($C9,'[1]징수보고서(지난년도제외)'!$A$3:$O$101,11,FALSE) -> 0 | M9: 131,245,100 | N9: 217.22 | O9: 94.9
C10: 하천사용료 | E10: =VLOOKUP($C10,'[1]징수보고서(지난년도제외)'!$A$3:$O$101,4,FALSE) -> 18,600 | F10: =VLOOKUP($C10,'[1]징수보고서(지난년도제외)'!$A$3:$O$101,5,FALSE) -> 175,893,790 | G10: =VLOOKUP($C10,'[1]징수보고서(지난년도제외)'!$A$3:$O$101,6,FALSE) -> 2,724,180 | H10: =VLOOKUP($C10,'[1]징수보고서(지난년도제외)'!$A$3:$O$101,7,FALSE) -> 175,742,430 | I10: =VLOOKUP($C10,'[1]징수보고서(지난년도제외)'!$A$3:$O$101,8,FALSE) -> 0 | J10: =VLOOKUP($C10,'[1]징수보고서(지난년도제외)'!$A$3:$O$101,9,FALSE) -> 0 | K10: =VLOOKUP($C10,'[1]징수보고서(지난년도제외)'!$A$3:$O$101,10,FALSE) -> 0 | L10: =VLOOKUP($C10,'[1]징수보고서(지난년도제외)'!$A$3:$O$101,11,FALSE) -> 0 | M10: 151,360 | N10: 14646.13 | O10: 99.91
C11: 하수도사용료 | E11: =VLOOKUP($C11,'[1]징수보고서(지난년도제외)'!$A$3:$O$101,4,FALSE) -> 0 | F11: =VLOOKUP($C11,'[1]징수보고서(지난년도제외)'!$A$3:$O$101,5,FALSE) -> 0 | G11: =VLOOKUP($C11,'[1]징수보고서(지난년도제외)'!$A$3:$O$101,6,FALSE) -> 0 | H11: =VLOOKUP($C11,'[1]징수보고서(지난년도제외)'!$A$3:$O$101,7,FALSE) -> 0 | I11: =VLOOKUP($C11,'[1]징수보고서(지난년도제외)'!$A$3:$O$101,8,FALSE) -> 0 | J11: =VLOOKUP($C11,'[1]징수보고서(지난년도제외)'!$A$3:$O$101,9,FALSE) -> 0 | K11: =VLOOKUP($C11,'[1]징수보고서(지난년도제외)'!$A$3:$O$101,10,FALSE) -> 0 | L11: =VLOOKUP($C11,'[1]징수보고서(지난년도제외)'!$A$3:$O$101,11,FALSE) -> 0 | M11: 0
C12: 상수도사용료 | E12: =VLOOKUP($C12,'[1]징수보고서(지난년도제외)'!$A$3:$O$101,4,FALSE) -> 99,880 | F12: =VLOOKUP($C12,'[1]징수보고서(지난년도제외)'!$A$3:$O$101,5,FALSE) -> 1,500,740 | G12: =VLOOKUP($C12,'[1]징수보고서(지난년도제외)'!$A$3:$O$101,6,FALSE) -> 99,880 | H12: =VLOOKUP($C12,'[1]징수보고서(지난년도제외)'!$A$3:$O$101,7,FALSE) -> 1,497,720 | I12: =VLOOKUP($C12,'[1]징수보고서(지난년도제외)'!$A$3:$O$101,8,FALSE) -> 0 | J12: =VLOOKUP($C12,'[1]징수보고서(지난년도제외)'!$A$3:$O$101,9,FALSE) -> 0 | K12: =VLOOKUP($C12,'[1]징수보고서(지난년도제외)'!$A$3:$O$101,10,FALSE) -> 0 | L12: =VLOOKUP($C12,'[1]징수보고서(지난년도제외)'!$A$3:$O$101,11,FALSE) -> 0 | M12: 3,020 | N12: 100 | O12: 99.8
C13: 공유수면사용료 | E13: =VLOOKUP($C13,'[1]징수보고서(지난년도제외)'!$A$3:$O$101,4,FALSE) -> 234,670 | F13: =VLOOKUP($C13,'[1]징수보고서(지난년도제외)'!$A$3:$O$101,5,FALSE) -> 501,721,310 | G13: =VLOOKUP($C13,'[1]징수보고서(지난년도제외)'!$A$3:$O$101,6,FALSE) -> 2,054,210 | H13: =VLOOKUP($C13,'[1]징수보고서(지난년도제외)'!$A$3:$O$101,7,FALSE) -> 452,321,500 | I13: =VLOOKUP($C13,'[1]징수보고서(지난년도제외)'!$A$3:$O$101,8,FALSE) -> 14,580 | J13: =VLOOKUP($C13,'[1]징수보고서(지난년도제외)'!$A$3:$O$101,9,FALSE) -> 14,580 | K13: =VLOOKUP($C13,'[1]징수보고서(지난년도제외)'!$A$3:$O$101,10,FALSE) -> 0 | L13: =VLOOKUP($C13,'[1]징수보고서(지난년도제외)'!$A$3:$O$101,11,FALSE) -> 0 | M13: 49,399,810 | N13: 875.36 | O13: 90.15
C14: 시장사용료 | E14: =VLOOKUP($C14,'[1]징수보고서(지난년도제외)'!$A$3:$O$101,4,FALSE) -> 8,506,350 | F14: =VLOOKUP($C14,'[1]징수보고서(지난년도제외)'!$A$3:$O$101,5,FALSE) -> 58,869,600 | G14: =VLOOKUP($C14,'[1]징수보고서(지난년도제외)'!$A$3:$O$101,6,FALSE) -> 8,506,350 | H14: =VLOOKUP($C14,'[1]징수보고서(지난년도제외)'!$A$3:$O$101,7,FALSE) -> 58,869,600 | I14: =VLOOKUP($C14,'[1]징수보고서(지난년도제외)'!$A$3:$O$101,8,FALSE) -> 0 | J14: =VLOOKUP($C14,'[1]징수보고서(지난년도제외)'!$A$3:$O$101,9,FALSE) -> 0 | K14: =VLOOKUP($C14,'[1]징수보고서(지난년도제외)'!$A$3:$O$101,10,FALSE) -> 0 | L14: =VLOOKUP($C14,'[1]징수보고서(지난년도제외)'!$A$3:$O$101,11,FALSE) -> 0 | M14: 0 | N14: 100 | O14: 100
C15: 입장료수입 | E15: =VLOOKUP($C15,'[1]징수보고서(지난년도제외)'!$A$3:$O$101,4,FALSE) -> 3,928,000 | F15: =VLOOKUP($C15,'[1]징수보고서(지난년도제외)'!$A$3:$O$101,5,FALSE) -> 7,039,000 | G15: =VLOOKUP($C15,'[1]징수보고서(지난년도제외)'!$A$3:$O$101,6,FALSE) -> 1,704,000 | H15: =VLOOKUP($C15,'[1]징수보고서(지난년도제외)'!$A$3:$O$101,7,FALSE) -> 4,815,000 | I15: =VLOOKUP($C15,'[1]징수보고서(지난년도제외)'!$A$3:$O$101,8,FALSE) -> 0 | J15: =VLOOKUP($C15,'[1]징수보고서(지난년도제외)'!$A$3:$O$101,9,FALSE) -> 0 | K15: =VLOOKUP($C15,'[1]징수보고서(지난년도제외)'!$A$3:$O$101,10,FALSE) -> 0 | L15: =VLOOKUP($C15,'[1]징수보고서(지난년도제외)'!$A$3:$O$101,11,FALSE) -> 0 | M15: 2,224,000 | N15: 43.38 | O15: 68.4
C16: 주차요금수입 | E16: =VLOOKUP($C16,'[1]징수보고서(지난년도제외)'!$A$3:$O$101,4,FALSE) -> 22,622,100 | F16: =VLOOKUP($C16,'[1]징수보고서(지난년도제외)'!$A$3:$O$101,5,FALSE) -> 258,726,380 | G16: =VLOOKUP($C16,'[1]징수보고서(지난년도제외)'!$A$3:$O$101,6,FALSE) -> 22,622,100 | H16: =VLOOKUP($C16,'[1]징수보고서(지난년도제외)'!$A$3:$O$101,7,FALSE) -> 258,726,380 | I16: =VLOOKUP($C16,'[1]징수보고서(지난년도제외)'!$A$3:$O$101,8,FALSE) -> 0 | J16: =VLOOKUP($C16,'[1]징수보고서(지난년도제외)'!$A$3:$O$101,9,FALSE) -> 0 | K16: =VLOOKUP($C16,'[1]징수보고서(지난년도제외)'!$A$3:$O$101,10,FALSE) -> 0 | L16: =VLOOKUP($C16,'[1]징수보고서(지난년도제외)'!$A$3:$O$101,11,FALSE) -> 0 | M16: 0 | N16: 100 | O16: 100
C17: 기타사용료 | E17: =VLOOKUP($C17,'[1]징수보고서(지난년도제외)'!$A$3:$O$101,4,FALSE) -> 376,065,890 | F17: =VLOOKUP($C17,'[1]징수보고서(지난년도제외)'!$A$3:$O$101,5,FALSE) -> 4,945,455,015 | G17: =VLOOKUP($C17,'[1]징수보고서(지난년도제외)'!$A$3:$O$101,6,FALSE) -> 450,206,850 | H17: =VLOOKUP($C17,'[1]징수보고서(지난년도제외)'!$A$3:$O$101,7,FALSE) -> 4,893,088,665 | I17: =VLOOKUP($C17,'[1]징수보고서(지난년도제외)'!$A$3:$O$101,8,FALSE) -> 4,950,250 | J17: =VLOOKUP($C17,'[1]징수보고서(지난년도제외)'!$A$3:$O$101,9,FALSE) -> 53,837,710 | K17: =VLOOKUP($C17,'[1]징수보고서(지난년도제외)'!$A$3:$O$101,10,FALSE) -> 0 | L17: =VLOOKUP($C17,'[1]징수보고서(지난년도제외)'!$A$3:$O$101,11,FALSE) -> 0 | M17: 52,366,350 | N17: 119.71 | O17: 98.94
B18: 수수료수입 | C18: 증지수입 | E18: =VLOOKUP($C18,'[1]징수보고서(지난년도제외)'!$A$3:$O$101,4,FALSE) -> 62,407,780 | F18: =VLOOKUP($C18,'[1]징수보고서(지난년도제외)'!$A$3:$O$101,5,FALSE) -> 708,208,280 | G18: =VLOOKUP($C18,'[1]징수보고서(지난년도제외)'!$A$3:$O$101,6,FALSE) -> 62,886,920 | H18: =VLOOKUP($C18,'[1]징수보고서(지난년도제외)'!$A$3:$O$101,7,FALSE) -> 707,065,520 | I18: =VLOOKUP($C18,'[1]징수보고서(지난년도제외)'!$A$3:$O$101,8,FALSE) -> 800 | J18: =VLOOKUP($C18,'[1]징수보고서(지난년도제외)'!$A$3:$O$101,9,FALSE) -> 125,200 | K18: =VLOOKUP($C18,'[1]징수보고서(지난년도제외)'!$A$3:$O$101,10,FALSE) -> 0 | L18: =VLOOKUP($C18,'[1]징수보고서(지난년도제외)'!$A$3:$O$101,11,FALSE) -> 0 | M18: 1,142,760 | N18: 100.77 | O18: 99.84
C19: 폐기물처리수수료 | E19: =VLOOKUP($C19,'[1]징수보고서(지난년도제외)'!$A$3:$O$101,4,FALSE) -> 633,534,070 | F19: =VLOOKUP($C19,'[1]징수보고서(지난년도제외)'!$A$3:$O$101,5,FALSE) -> 7,280,194,540 | G19: =VLOOKUP($C19,'[1]징수보고서(지난년도제외)'!$A$3:$O$101,6,FALSE) -> 638,705,900 | H19: =VLOOKUP($C19,'[1]징수보고서(지난년도제외)'!$A$3:$O$101,7,FALSE) -> 7,274,654,790 | I19: =VLOOKUP($C19,'[1]징수보고서(지난년도제외)'!$A$3:$O$101,8,FALSE) -> 0 | J19: =VLOOKUP($C19,'[1]징수보고서(지난년도제외)'!$A$3:$O$101,9,FALSE) -> 396,780 | K19: =VLOOKUP($C19,'[1]징수보고서(지난년도제외)'!$A$3:$O$101,10,FALSE) -> 0 | L19: =VLOOKUP($C19,'[1]징수보고서(지난년도제외)'!$A$3:$O$101,11,FALSE) -> 0 | M19: 5,539,750 | N19: 100.82 | O19: 99.92
C20: 재활용품수거판매수입 | E20: =VLOOKUP($C20,'[1]징수보고서(지난년도제외)'!$A$3:$O$101,4,FALSE) -> 13,671,000 | F20: =VLOOKUP($C20,'[1]징수보고서(지난년도제외)'!$A$3:$O$101,5,FALSE) -> 222,102,850 | G20: =VLOOKUP($C20,'[1]징수보고서(지난년도제외)'!$A$3:$O$101,6,FALSE) -> 15,169,250 | H20: =VLOOKUP($C20,'[1]징수보고서(지난년도제외)'!$A$3:$O$101,7,FALSE) -> 216,091,250 | I20: =VLOOKUP($C20,'[1]징수보고서(지난년도제외)'!$A$3:$O$101,8,FALSE) -> 0 | J20: =VLOOKUP($C20,'[1]징수보고서(지난년도제외)'!$A$3:$O$101,9,FALSE) -> 0 | K20: =VLOOKUP($C20,'[1]징수보고서(지난년도제외)'!$A$3:$O$101,10,FALSE) -> 0 | L20: =VLOOKUP($C20,'[1]징수보고서(지난년도제외)'!$A$3:$O$101,11,FALSE) -> 0 | M20: 6,011,600 | N20: 110.96 | O20: 97.29
C21: 보건의료수수료 | E21: =VLOOKUP($C21,'[1]징수보고서(지난년도제외)'!$A$3:$O$101,4,FALSE) -> 46,044,680 | F21: =VLOOKUP($C21,'[1]징수보고서(지난년도제외)'!$A$3:$O$101,5,FALSE) -> 583,412,370 | G21: =VLOOKUP($C21,'[1]징수보고서(지난년도제외)'!$A$3:$O$101,6,FALSE) -> 46,164,880 | H21: =VLOOKUP($C21,'[1]징수보고서(지난년도제외)'!$A$3:$O$101,7,FALSE) -> 583,272,370 | I21: =VLOOKUP($C21,'[1]징수보고서(지난년도제외)'!$A$3:$O$101,8,FALSE) -> 0 | J21: =VLOOKUP($C21,'[1]징수보고서(지난년도제외)'!$A$3:$O$101,9,FALSE) -> 11,460 | K21: =VLOOKUP($C21,'[1]징수보고서(지난년도제외)'!$A$3:$O$101,10,FALSE) -> 0 | L21: =VLOOKUP($C21,'[1]징수보고서(지난년도제외)'!$A$3:$O$101,11,FALSE) -> 0 | M21: 140,000 | N21: 100.26 | O21: 99.98
C22: 기타수수료 | E22: =VLOOKUP($C22,'[1]징수보고서(지난년도제외)'!$A$3:$O$101,4,FALSE) -> 45,797,480 | F22: =VLOOKUP($C22,'[1]징수보고서(지난년도제외)'!$A$3:$O$101,5,FALSE) -> 517,534,120 | G22: =VLOOKUP($C22,'[1]징수보고서(지난년도제외)'!$A$3:$O$101,6,FALSE) -> 45,635,590 | H22: =VLOOKUP($C22,'[1]징수보고서(지난년도제외)'!$A$3:$O$101,7,FALSE) -> 516,064,620 | I22: =VLOOKUP($C22,'[1]징수보고서(지난년도제외)'!$A$3:$O$101,8,FALSE) -> 0 | J22: =VLOOKUP($C22,'[1]징수보고서(지난년도제외)'!$A$3:$O$101,9,FALSE) -> 35,000 | K22: =VLOOKUP($C22,'[1]징수보고서(지난년도제외)'!$A$3:$O$101,10,FALSE) -> 0 | L22: =VLOOKUP($C22,'[1]징수보고서(지난년도제외)'!$A$3:$O$101,11,FALSE) -> 0 | M22: 1,469,500 | N22: 99.65 | O22: 99.72
B23: 사업수입 | C23: 사업장생산수입 | E23: =VLOOKUP($C23,'[1]징수보고서(지난년도제외)'!$A$3:$O$101,4,FALSE) -> 106,933,100 | F23: =VLOOKUP($C23,'[1]징수보고서(지난년도제외)'!$A$3:$O$101,5,FALSE) -> 1,163,418,610 | G23: =VLOOKUP($C23,'[1]징수보고서(지난년도제외)'!$A$3:$O$101,6,FALSE) -> 101,345,300 | H23: =VLOOKUP($C23,'[1]징수보고서(지난년도제외)'!$A$3:$O$101,7,FALSE) -> 1,157,830,810 | I23: =VLOOKUP($C23,'[1]징수보고서(지난년도제외)'!$A$3:$O$101,8,FALSE) -> 0 | J23: =VLOOKUP($C23,'[1]징수보고서(지난년도제외)'!$A$3:$O$101,9,FALSE) -> 0 | K23: =VLOOKUP($C23,'[1]징수보고서(지난년도제외)'!$A$3:$O$101,10,FALSE) -> 0 | L23: =VLOOKUP($C23,'[1]징수보고서(지난년도제외)'!$A$3:$O$101,11,FALSE) -> 0 | M23: 5,587,800 | N23: 94.77 | O23: 99.52
C24: 청산금수입 | E24: =VLOOKUP($C24,'[1]징수보고서(지난년도제외)'!$A$3:$O$101,4,FALSE) -> 0 | F24: =VLOOKUP($C24,'[1]징수보고서(지난년도제외)'!$A$3:$O$101,5,FALSE) -> 0 | G24: =VLOOKUP($C24,'[1]징수보고서(지난년도제외)'!$A$3:$O$101,6,FALSE) -> 0 | H24: =VLOOKUP($C24,'[1]징수보고서(지난년도제외)'!$A$3:$O$101,7,FALSE) -> 0 | I24: =VLOOKUP($C24,'[1]징수보고서(지난년도제외)'!$A$3:$O$101,8,FALSE) -> 0 | J24: =VLOOKUP($C24,'[1]징수보고서(지난년도제외)'!$A$3:$O$101,9,FALSE) -> 0 | K24: =VLOOKUP($C24,'[1]징수보고서(지난년도제외)'!$A$3:$O$101,10,FALSE) -> 0 | L24: =VLOOKUP($C24,'[1]징수보고서(지난년도제외)'!$A$3:$O$101,11,FALSE) -> 0 | M24: 0
C25: 매각사업수입 | E25: =VLOOKUP($C25,'[1]징수보고서(지난년도제외)'!$A$3:$O$101,4,FALSE) -> 0 | F25: =VLOOKUP($C25,'[1]징수보고서(지난년도제외)'!$A$3:$O$101,5,FALSE) -> 0 | G25: =VLOOKUP($C25,'[1]징수보고서(지난년도제외)'!$A$3:$O$101,6,FALSE) -> 0 | H25: =VLOOKUP($C25,'[1]징수보고서(지난년도제외)'!$A$3:$O$101,7,FALSE) -> 0 | I25: =VLOOKUP($C25,'[1]징수보고서(지난년도제외)'!$A$3:$O$101,8,FALSE) -> 0 | J25: =VLOOKUP($C25,'[1]징수보고서(지난년도제외)'!$A$3:$O$101,9,FALSE) -> 0 | K25: =VLOOKUP($C25,'[1]징수보고서(지난년도제외)'!$A$3:$O$101,10,FALSE) -> 0 | L25: =VLOOKUP($C25,'[1]징수보고서(지난년도제외)'!$A$3:$O$101,11,FALSE) -> 0 | M25: 0
C26: 배당금수입 | E26: =VLOOKUP($C26,'[1]징수보고서(지난년도제외)'!$A$3:$O$101,4,FALSE) -> 0 | F26: =VLOOKUP($C26,'[1]징수보고서(지난년도제외)'!$A$3:$O$101,5,FALSE) -> 0 | G26: =VLOOKUP($C26,'[1]징수보고서(지난년도제외)'!$A$3:$O$101,6,FALSE) -> 0 | H26: =VLOOKUP($C26,'[1]징수보고서(지난년도제외)'!$A$3:$O$101,7,FALSE) -> 0 | I26: =VLOOKUP($C26,'[1]징수보고서(지난년도제외)'!$A$3:$O$101,8,FALSE) -> 0 | J26: =VLOOKUP($C26,'[1]징수보고서(지난년도제외)'!$A$3:$O$101,9,FALSE) -> 0 | K26: =VLOOKUP($C26,'[1]징수보고서(지난년도제외)'!$A$3:$O$101,10,FALSE) -> 0 | L26: =VLOOKUP($C26,'[1]징수보고서(지난년도제외)'!$A$3:$O$101,11,FALSE) -> 0 | M26: 0
C27: 기타사업수입 | E27: =VLOOKUP($C27,'[1]징수보고서(지난년도제외)'!$A$3:$O$101,4,FALSE) -> 1,741,000 | F27: =VLOOKUP($C27,'[1]징수보고서(지난년도제외)'!$A$3:$O$101,5,FALSE) -> 10,976,880 | G27: =VLOOKUP($C27,'[1]징수보고서(지난년도제외)'!$A$3:$O$101,6,FALSE) -> 1,763,000 | H27: =VLOOKUP($C27,'[1]징수보고서(지난년도제외)'!$A$3:$O$101,7,FALSE) -> 10,960,380 | I27: =VLOOKUP($C27,'[1]징수보고서(지난년도제외)'!$A$3:$O$101,8,FALSE) -> 5,500 | J27: =VLOOKUP($C27,'[1]징수보고서(지난년도제외)'!$A$3:$O$101,9,FALSE) -> 5,500 | K27: =VLOOKUP($C27,'[1]징수보고서(지난년도제외)'!$A$3:$O$101,10,FALSE) -> 0 | L27: =VLOOKUP($C27,'[1]징수보고서(지난년도제외)'!$A$3:$O$101,11,FALSE) -> 0 | M27: 16,500 | N27: 101.26 | O27: 99.85
B28: 징수교부금수입 | C28: 징수교부금수입 | E28: =VLOOKUP($C28,'[1]징수보고서(지난년도제외)'!$A$3:$O$101,4,FALSE) -> 588,367,490 | F28: =VLOOKUP($C28,'[1]징수보고서(지난년도제외)'!$A$3:$O$101,5,FALSE) -> 3,155,348,140 | G28: =VLOOKUP($C28,'[1]징수보고서(지난년도제외)'!$A$3:$O$101,6,FALSE) -> 588,367,490 | H28: =VLOOKUP($C28,'[1]징수보고서(지난년도제외)'!$A$3:$O$101,7,FALSE) -> 3,155,348,140 | I28: =VLOOKUP($C28,'[1]징수보고서(지난년도제외)'!$A$3:$O$101,8,FALSE) -> 0 | J28: =VLOOKUP($C28,'[1]징수보고서(지난년도제외)'!$A$3:$O$101,9,FALSE) -> 0 | K28: =VLOOKUP($C28,'[1]징수보고서(지난년도제외)'!$A$3:$O$101,10,FALSE) -> 0 | L28: =VLOOKUP($C28,'[1]징수보고서(지난년도제외)'!$A$3:$O$101,11,FALSE) -> 0 | M28: 0 | N28: 100 | O28: 100
B29: 이자수입 | C29: 공공예금이자수입 | E29: =VLOOKUP($C29,'[1]징수보고서(지난년도제외)'!$A$3:$O$101,4,FALSE) -> 1,088,274,660 | F29: =VLOOKUP($C29,'[1]징수보고서(지난년도제외)'!$A$3:$O$101,5,FALSE) -> 8,867,696,700 | G29: =VLOOKUP($C29,'[1]징수보고서(지난년도제외)'!$A$3:$O$101,6,FALSE) -> 1,088,274,660 | H29: =VLOOKUP($C29,'[1]징수보고서(지난년도제외)'!$A$3:$O$101,7,FALSE) -> 8,867,696,700 | I29: =VLOOKUP($C29,'[1]징수보고서(지난년도제외)'!$A$3:$O$101,8,FALSE) -> 0 | J29: =VLOOKUP($C29,'[1]징수보고서(지난년도제외)'!$A$3:$O$101,9,FALSE) -> 0 | K29: =VLOOKUP($C29,'[1]징수보고서(지난년도제외)'!$A$3:$O$101,10,FALSE) -> 0 | L29: =VLOOKUP($C29,'[1]징수보고서(지난년도제외)'!$A$3:$O$101,11,FALSE) -> 0 | M29: 0 | N29: 100 | O29: 100
C30: 융자금회수이자수입 | E30: =VLOOKUP($C30,'[1]징수보고서(지난년도제외)'!$A$3:$O$101,4,FALSE) -> 0 | F30: =VLOOKUP($C30,'[1]징수보고서(지난년도제외)'!$A$3:$O$101,5,FALSE) -> 0 | G30: =VLOOKUP($C30,'[1]징수보고서(지난년도제외)'!$A$3:$O$101,6,FALSE) -> 0 | H30: =VLOOKUP($C30,'[1]징수보고서(지난년도제외)'!$A$3:$O$101,7,FALSE) -> 0 | I30: =VLOOKUP($C30,'[1]징수보고서(지난년도제외)'!$A$3:$O$101,8,FALSE) -> 0 | J30: =VLOOKUP($C30,'[1]징수보고서(지난년도제외)'!$A$3:$O$101,9,FALSE) -> 0 | K30: =VLOOKUP($C30,'[1]징수보고서(지난년도제외)'!$A$3:$O$101,10,FALSE) -> 0 | L30: =VLOOKUP($C30,'[1]징수보고서(지난년도제외)'!$A$3:$O$101,11,FALSE) -> 0 | M30: 0
C31: 기타이자수입 | E31: =VLOOKUP($C31,'[1]징수보고서(지난년도제외)'!$A$3:$O$101,4,FALSE) -> 31,979,526 | F31: =VLOOKUP($C31,'[1]징수보고서(지난년도제외)'!$A$3:$O$101,5,FALSE) -> 1,067,652,023 | G31: =VLOOKUP($C31,'[1]징수보고서(지난년도제외)'!$A$3:$O$101,6,FALSE) -> 34,174,984 | H31: =VLOOKUP($C31,'[1]징수보고서(지난년도제외)'!$A$3:$O$101,7,FALSE) -> 1,067,265,463 | I31: =VLOOKUP($C31,'[1]징수보고서(지난년도제외)'!$A$3:$O$101,8,FALSE) -> 0 | J31: =VLOOKUP($C31,'[1]징수보고서(지난년도제외)'!$A$3:$O$101,9,FALSE) -> 178,620 | K31: =VLOOKUP($C31,'[1]징수보고서(지난년도제외)'!$A$3:$O$101,10,FALSE) -> 0 | L31: =VLOOKUP($C31,'[1]징수보고서(지난년도제외)'!$A$3:$O$101,11,FALSE) -> 0 | M31: =F31-H31-L31 -> 386,560 | N31: 106.87 | O31: 99.96
A32: 임시적세외수입 | E32: =SUM(E33:E47) -> 904,246,770 | F32: 32,391,287,038 | G32: 1,583,350,230 | H32: 31,009,031,578 | I32: 624,130 | J32: 4,711,670 | K32: 0 | L32: 0 | M32: =SUM(M33:M47) -> 1,382,255,460 | N32: 175.1 | O32: 95.73
B33: 재산매각수입 | C33: 국유재산매각귀속수입금 | E33: =VLOOKUP($C33,'[1]징수보고서(지난년도제외)'!$A$3:$O$101,4,FALSE) -> 0 | F33: =VLOOKUP($C33,'[1]징수보고서(지난년도제외)'!$A$3:$O$101,5,FALSE) -> 0 | G33: =VLOOKUP($C33,'[1]징수보고서(지난년도제외)'!$A$3:$O$101,6,FALSE) -> 0 | H33: =VLOOKUP($C33,'[1]징수보고서(지난년도제외)'!$A$3:$O$101,7,FALSE) -> 0 | I33: =VLOOKUP($C33,'[1]징수보고서(지난년도제외)'!$A$3:$O$101,8,FALSE) -> 0 | J33: =VLOOKUP($C33,'[1]징수보고서(지난년도제외)'!$A$3:$O$101,9,FALSE) -> 0 | K33: =VLOOKUP($C33,'[1]징수보고서(지난년도제외)'!$A$3:$O$101,10,FALSE) -> 0 | L33: =VLOOKUP($C33,'[1]징수보고서(지난년도제외)'!$A$3:$O$101,11,FALSE) -> 0 | M33: =F33-H33-L33 -> 0
C34: 시도유재산매각귀속수입금 | E34: =VLOOKUP($C34,'[1]징수보고서(지난년도제외)'!$A$3:$O$101,4,FALSE) -> 0 | F34: =VLOOKUP($C34,'[1]징수보고서(지난년도제외)'!$A$3:$O$101,5,FALSE) -> 0 | G34: =VLOOKUP($C34,'[1]징수보고서(지난년도제외)'!$A$3:$O$101,6,FALSE) -> 0 | H34: =VLOOKUP($C34,'[1]징수보고서(지난년도제외)'!$A$3:$O$101,7,FALSE) -> 0 | I34: =VLOOKUP($C34,'[1]징수보고서(지난년도제외)'!$A$3:$O$101,8,FALSE) -> 0 | J34: =VLOOKUP($C34,'[1]징수보고서(지난년도제외)'!$A$3:$O$101,9,FALSE) -> 0 | K34: =VLOOKUP($C34,'[1]징수보고서(지난년도제외)'!$A$3:$O$101,10,FALSE) -> 0 | L34: =VLOOKUP($C34,'[1]징수보고서(지난년도제외)'!$A$3:$O$101,11,FALSE) -> 0 | M34: =F34-H34-L34 -> 0
C35: 공유재산매각수입금 | E35: =VLOOKUP($C35,'[1]징수보고서(지난년도제외)'!$A$3:$O$101,4,FALSE) -> 140,600,000 | F35: =VLOOKUP($C35,'[1]징수보고서(지난년도제외)'!$A$3:$O$101,5,FALSE) -> 9,346,402,080 | G35: =VLOOKUP($C35,'[1]징수보고서(지난년도제외)'!$A$3:$O$101,6,FALSE) -> 140,600,000 | H35: =VLOOKUP($C35,'[1]징수보고서(지난년도제외)'!$A$3:$O$101,7,FALSE) -> 9,346,402,080 | I35: =VLOOKUP($C35,'[1]징수보고서(지난년도제외)'!$A$3:$O$101,8,FALSE) -> 0 | J35: =VLOOKUP($C35,'[1]징수보고서(지난년도제외)'!$A$3:$O$101,9,FALSE) -> 0 | K35: =VLOOKUP($C35,'[1]징수보고서(지난년도제외)'!$A$3:$O$101,10,FALSE) -> 0 | L35: =VLOOKUP($C35,'[1]징수보고서(지난년도제외)'!$A$3:$O$101,11,FALSE) -> 0 | M35: 0 | N35: 100 | O35: 100
C36: 불용품매각대금 | E36: =VLOOKUP($C36,'[1]징수보고서(지난년도제외)'!$A$3:$O$101,4,FALSE) -> 0 | F36: =VLOOKUP($C36,'[1]징수보고서(지난년도제외)'!$A$3:$O$101,5,FALSE) -> 47,826,740 | G36: =VLOOKUP($C36,'[1]징수보고서(지난년도제외)'!$A$3:$O$101,6,FALSE) -> 10,551,750 | H36: =VLOOKUP($C36,'[1]징수보고서(지난년도제외)'!$A$3:$O$101,7,FALSE) -> 47,826,740 | I36: =VLOOKUP($C36,'[1]징수보고서(지난년도제외)'!$A$3:$O$101,8,FALSE) -> 0 | J36: =VLOOKUP($C36,'[1]징수보고서(지난년도제외)'!$A$3:$O$101,9,FALSE) -> 0 | K36: =VLOOKUP($C36,'[1]징수보고서(지난년도제외)'!$A$3:$O$101,10,FALSE) -> 0 | L36: =VLOOKUP($C36,'[1]징수보고서(지난년도제외)'!$A$3:$O$101,11,FALSE) -> 0 | M36: 0 | O36: 100
B37: 자치단체간부담금 | C37: 자치단체간부담금 | E37: =VLOOKUP($C37,'[1]징수보고서(지난년도제외)'!$A$3:$O$101,4,FALSE) -> 0 | F37: =VLOOKUP($C37,'[1]징수보고서(지난년도제외)'!$A$3:$O$101,5,FALSE) -> 950,000,000 | G37: =VLOOKUP($C37,'[1]징수보고서(지난년도제외)'!$A$3:$O$101,6,FALSE) -> 0 | H37: =VLOOKUP($C37,'[1]징수보고서(지난년도제외)'!$A$3:$O$101,7,FALSE) -> 950,000,000 | I37: =VLOOKUP($C37,'[1]징수보고서(지난년도제외)'!$A$3:$O$101,8,FALSE) -> 0 | J37: =VLOOKUP($C37,'[1]징수보고서(지난년도제외)'!$A$3:$O$101,9,FALSE) -> 0 | K37: =VLOOKUP($C37,'[1]징수보고서(지난년도제외)'!$A$3:$O$101,10,FALSE) -> 0 | L37: =VLOOKUP($C37,'[1]징수보고서(지난년도제외)'!$A$3:$O$101,11,FALSE) -> 0 | M37: 0 | O37: 100
B38: 보조금 반환수입 | C38: 시도비보조금등반환수입 | E38: =VLOOKUP($C38,'[1]징수보고서(지난년도제외)'!$A$3:$O$101,4,FALSE) -> 0 | F38: =VLOOKUP($C38,'[1]징수보고서(지난년도제외)'!$A$3:$O$101,5,FALSE) -> 0 | G38: =VLOOKUP($C38,'[1]징수보고서(지난년도제외)'!$A$3:$O$101,6,FALSE) -> 0 | H38: =VLOOKUP($C38,'[1]징수보고서(지난년도제외)'!$A$3:$O$101,7,FALSE) -> 0 | I38: =VLOOKUP($C38,'[1]징수보고서(지난년도제외)'!$A$3:$O$101,8,FALSE) -> 0 | J38: =VLOOKUP($C38,'[1]징수보고서(지난년도제외)'!$A$3:$O$101,9,FALSE) -> 0 | K38: =VLOOKUP($C38,'[1]징수보고서(지난년도제외)'!$A$3:$O$101,10,FALSE) -> 0 | L38: =VLOOKUP($C38,'[1]징수보고서(지난년도제외)'!$A$3:$O$101,11,FALSE) -> 0 | M38: 0
C39: 자체보조금등반환수입 | E39: =VLOOKUP($C39,'[1]징수보고서(지난년도제외)'!$A$3:$O$101,4,FALSE) -> 136,416,910 | F39: =VLOOKUP($C39,'[1]징수보고서(지난년도제외)'!$A$3:$O$101,5,FALSE) -> 3,737,242,506 | G39: =VLOOKUP($C39,'[1]징수보고서(지난년도제외)'!$A$3:$O$101,6,FALSE) -> 219,977,050 | H39: =VLOOKUP($C39,'[1]징수보고서(지난년도제외)'!$A$3:$O$101,7,FALSE) -> 3,712,173,786 | I39: =VLOOKUP($C39,'[1]징수보고서(지난년도제외)'!$A$3:$O$101,8,FALSE) -> 0 | J39: =VLOOKUP($C39,'[1]징수보고서(지난년도제외)'!$A$3:$O$101,9,FALSE) -> 3,595,170 | K39: =VLOOKUP($C39,'[1]징수보고서(지난년도제외)'!$A$3:$O$101,10,FALSE) -> 0 | L39: =VLOOKUP($C39,'[1]징수보고서(지난년도제외)'!$A$3:$O$101,11,FALSE) -> 0 | M39: 25,068,720 | N39: 161.25 | O39: 99.33
C40: 위탁비반환수입 | E40: =VLOOKUP($C40,'[1]징수보고서(지난년도제외)'!$A$3:$O$101,4,FALSE) -> 974,000 | F40: =VLOOKUP($C40,'[1]징수보고서(지난년도제외)'!$A$3:$O$101,5,FALSE) -> 167,352,020 | G40: =VLOOKUP($C40,'[1]징수보고서(지난년도제외)'!$A$3:$O$101,6,FALSE) -> 2,528,200 | H40: =VLOOKUP($C40,'[1]징수보고서(지난년도제외)'!$A$3:$O$101,7,FALSE) -> 167,352,020 | I40: =VLOOKUP($C40,'[1]징수보고서(지난년도제외)'!$A$3:$O$101,8,FALSE) -> 0 | J40: =VLOOKUP($C40,'[1]징수보고서(지난년도제외)'!$A$3:$O$101,9,FALSE) -> 0 | K40: =VLOOKUP($C40,'[1]징수보고서(지난년도제외)'!$A$3:$O$101,10,FALSE) -> 0 | L40: =VLOOKUP($C40,'[1]징수보고서(지난년도제외)'!$A$3:$O$101,11,FALSE) -> 0 | M40: 0 | N40: 259.57 | O40: 100
B41: 기타수입 | C41: 체납처분수입 | E41: =VLOOKUP($C41,'[1]징수보고서(지난년도제외)'!$A$3:$O$101,4,FALSE) -> 0 | F41: =VLOOKUP($C41,'[1]징수보고서(지난년도제외)'!$A$3:$O$101,5,FALSE) -> 0 | G41: =VLOOKUP($C41,'[1]징수보고서(지난년도제외)'!$A$3:$O$101,6,FALSE) -> 0 | H41: =VLOOKUP($C41,'[1]징수보고서(지난년도제외)'!$A$3:$O$101,7,FALSE) -> 0 | I41: =VLOOKUP($C41,'[1]징수보고서(지난년도제외)'!$A$3:$O$101,8,FALSE) -> 0 | J41: =VLOOKUP($C41,'[1]징수보고서(지난년도제외)'!$A$3:$O$101,9,FALSE) -> 0 | K41: =VLOOKUP($C41,'[1]징수보고서(지난년도제외)'!$A$3:$O$101,10,FALSE) -> 0 | L41: =VLOOKUP($C41,'[1]징수보고서(지난년도제외)'!$A$3:$O$101,11,FALSE) -> 0 | M41: 0
C42: 보상금수납금 | E42: =VLOOKUP($C42,'[1]징수보고서(지난년도제외)'!$A$3:$O$101,4,FALSE) -> 0 | F42: =VLOOKUP($C42,'[1]징수보고서(지난년도제외)'!$A$3:$O$101,5,FALSE) -> 0 | G42: =VLOOKUP($C42,'[1]징수보고서(지난년도제외)'!$A$3:$O$101,6,FALSE) -> 0 | H42: =VLOOKUP($C42,'[1]징수보고서(지난년도제외)'!$A$3:$O$101,7,FALSE) -> 0 | I42: =VLOOKUP($C42,'[1]징수보고서(지난년도제외)'!$A$3:$O$101,8,FALSE) -> 0 | J42: =VLOOKUP($C42,'[1]징수보고서(지난년도제외)'!$A$3:$O$101,9,FALSE) -> 0 | K42: =VLOOKUP($C42,'[1]징수보고서(지난년도제외)'!$A$3:$O$101,10,FALSE) -> 0 | L42: =VLOOKUP($C42,'[1]징수보고서(지난년도제외)'!$A$3:$O$101,11,FALSE) -> 0 | M42: 0
C43: 기부금수입 | E43: =VLOOKUP($C43,'[1]징수보고서(지난년도제외)'!$A$3:$O$101,4,FALSE) -> 0 | F43: =VLOOKUP($C43,'[1]징수보고서(지난년도제외)'!$A$3:$O$101,5,FALSE) -> 96,100,080 | G43: =VLOOKUP($C43,'[1]징수보고서(지난년도제외)'!$A$3:$O$101,6,FALSE) -> 0 | H43: =VLOOKUP($C43,'[1]징수보고서(지난년도제외)'!$A$3:$O$101,7,FALSE) -> 96,100,080 | I43: =VLOOKUP($C43,'[1]징수보고서(지난년도제외)'!$A$3:$O$101,8,FALSE) -> 0 | J43: =VLOOKUP($C43,'[1]징수보고서(지난년도제외)'!$A$3:$O$101,9,FALSE) -> 0 | K43: =VLOOKUP($C43,'[1]징수보고서(지난년도제외)'!$A$3:$O$101,10,FALSE) -> 0 | L43: =VLOOKUP($C43,'[1]징수보고서(지난년도제외)'!$A$3:$O$101,11,FALSE) -> 0 | M43: 0 | O43: 100
C44: 지적재조사조정금 | E44: =VLOOKUP($C44,'[1]징수보고서(지난년도제외)'!$A$3:$O$101,4,FALSE) -> 52,092,280 | F44: =VLOOKUP($C44,'[1]징수보고서(지난년도제외)'!$A$3:$O$101,5,FALSE) -> 4,823,101,020 | G44: =VLOOKUP($C44,'[1]징수보고서(지난년도제외)'!$A$3:$O$101,6,FALSE) -> 71,104,760 | H44: =VLOOKUP($C44,'[1]징수보고서(지난년도제외)'!$A$3:$O$101,7,FALSE) -> 3,498,417,310 | I44: =VLOOKUP($C44,'[1]징수보고서(지난년도제외)'!$A$3:$O$101,8,FALSE) -> 474,130 | J44: =VLOOKUP($C44,'[1]징수보고서(지난년도제외)'!$A$3:$O$101,9,FALSE) -> 474,130 | K44: =VLOOKUP($C44,'[1]징수보고서(지난년도제외)'!$A$3:$O$101,10,FALSE) -> 0 | L44: =VLOOKUP($C44,'[1]징수보고서(지난년도제외)'!$A$3:$O$101,11,FALSE) -> 0 | M44: 1,324,683,710 | N44: 136.5 | O44: 72.53
C45: 지방교부세감소분보전수입 | E45: =VLOOKUP($C45,'[1]징수보고서(지난년도제외)'!$A$3:$O$101,4,FALSE) -> 0 | F45: =VLOOKUP($C45,'[1]징수보고서(지난년도제외)'!$A$3:$O$101,5,FALSE) -> 8,004,763,260 | G45: =VLOOKUP($C45,'[1]징수보고서(지난년도제외)'!$A$3:$O$101,6,FALSE) -> 0 | H45: =VLOOKUP($C45,'[1]징수보고서(지난년도제외)'!$A$3:$O$101,7,FALSE) -> 8,004,763,260 | I45: =VLOOKUP($C45,'[1]징수보고서(지난년도제외)'!$A$3:$O$101,8,FALSE) -> 0 | J45: =VLOOKUP($C45,'[1]징수보고서(지난년도제외)'!$A$3:$O$101,9,FALSE) -> 0 | K45: =VLOOKUP($C45,'[1]징수보고서(지난년도제외)'!$A$3:$O$101,10,FALSE) -> 0 | L45: =VLOOKUP($C45,'[1]징수보고서(지난년도제외)'!$A$3:$O$101,11,FALSE) -> 0 | M45: 0 | O45: 100
C46: 위약금 | E46: =VLOOKUP($C46,'[1]징수보고서(지난년도제외)'!$A$3:$O$101,4,FALSE) -> 4,924,440 | F46: =VLOOKUP($C46,'[1]징수보고서(지난년도제외)'!$A$3:$O$101,5,FALSE) -> 91,228,150 | G46: =VLOOKUP($C46,'[1]징수보고서(지난년도제외)'!$A$3:$O$101,6,FALSE) -> 4,924,440 | H46: =VLOOKUP($C46,'[1]징수보고서(지난년도제외)'!$A$3:$O$101,7,FALSE) -> 91,228,150 | I46: =VLOOKUP($C46,'[1]징수보고서(지난년도제외)'!$A$3:$O$101,8,FALSE) -> 0 | J46: =VLOOKUP($C46,'[1]징수보고서(지난년도제외)'!$A$3:$O$101,9,FALSE) -> 0 | K46: =VLOOKUP($C46,'[1]징수보고서(지난년도제외)'!$A$3:$O$101,10,FALSE) -> 0 | L46: =VLOOKUP($C46,'[1]징수보고서(지난년도제외)'!$A$3:$O$101,11,FALSE) -> 0 | M46: 0 | N46: 100 | O46: 100
C47: 그외수입 | E47: =VLOOKUP($C47,'[1]징수보고서(지난년도제외)'!$A$3:$O$101,4,FALSE) -> 569,239,140 | F47: =VLOOKUP($C47,'[1]징수보고서(지난년도제외)'!$A$3:$O$101,5,FALSE) -> 5,127,271,182 | G47: =VLOOKUP($C47,'[1]징수보고서(지난년도제외)'!$A$3:$O$101,6,FALSE) -> 1,133,664,030 | H47: =VLOOKUP($C47,'[1]징수보고서(지난년도제외)'!$A$3:$O$101,7,FALSE) -> 5,094,768,152 | I47: =VLOOKUP($C47,'[1]징수보고서(지난년도제외)'!$A$3:$O$101,8,FALSE) -> 150,000 | J47: =VLOOKUP($C47,'[1]징수보고서(지난년도제외)'!$A$3:$O$101,9,FALSE) -> 642,370 | K47: =VLOOKUP($C47,'[1]징수보고서(지난년도제외)'!$A$3:$O$101,10,FALSE) -> 0 | L47: =VLOOKUP($C47,'[1]징수보고서(지난년도제외)'!$A$3:$O$101,11,FALSE) -> 0 | M47: 32,503,030 | N47: 199.15 | O47: 99.37
A48: 지방행정제재 부과금 | E48: =SUM(E49:E56) -> 1,023,471,860 | F48: =SUM(F49:F56) -> 6,364,981,710 | G48: 370,248,500 | H48: 3,432,896,186 | I48: 2,679,040 | J48: 10,656,940 | K48: 0 | L48: 0 | M48: 2,932,085,524 | N48: 36.18 | O48: 53.93
B49: 과징금 | C49: 과징금 | E49: =VLOOKUP($C49,'[1]징수보고서(지난년도제외)'!$A$3:$O$101,4,FALSE) -> 13,740,000 | F49: =VLOOKUP($C49,'[1]징수보고서(지난년도제외)'!$A$3:$O$101,5,FALSE) -> 297,801,060 | G49: =VLOOKUP($C49,'[1]징수보고서(지난년도제외)'!$A$3:$O$101,6,FALSE) -> 14,177,530 | H49: =VLOOKUP($C49,'[1]징수보고서(지난년도제외)'!$A$3:$O$101,7,FALSE) -> 109,463,300 | I49: =VLOOKUP($C49,'[1]징수보고서(지난년도제외)'!$A$3:$O$101,8,FALSE) -> 0 | J49: =VLOOKUP($C49,'[1]징수보고서(지난년도제외)'!$A$3:$O$101,9,FALSE) -> 0 | K49: =VLOOKUP($C49,'[1]징수보고서(지난년도제외)'!$A$3:$O$101,10,FALSE) -> 0 | L49: =VLOOKUP($C49,'[1]징수보고서(지난년도제외)'!$A$3:$O$101,11,FALSE) -> 0 | M49: =F49-H49-L49 -> 188,337,760 | N49: 103.18 | O49: 36.76
B50: 이행강제금 | C50: 이행강제금 | E50: =VLOOKUP($C50,'[1]징수보고서(지난년도제외)'!$A$3:$O$101,4,FALSE) -> 660,275,380 | F50: =VLOOKUP($C50,'[1]징수보고서(지난년도제외)'!$A$3:$O$101,5,FALSE) -> 1,700,078,280 | G50: =VLOOKUP($C50,'[1]징수보고서(지난년도제외)'!$A$3:$O$101,6,FALSE) -> 146,012,410 | H50: =VLOOKUP($C50,'[1]징수보고서(지난년도제외)'!$A$3:$O$101,7,FALSE) -> 675,570,150 | I50: =VLOOKUP($C50,'[1]징수보고서(지난년도제외)'!$A$3:$O$101,8,FALSE) -> 2,557,040 | J50: =VLOOKUP($C50,'[1]징수보고서(지난년도제외)'!$A$3:$O$101,9,FALSE) -> 2,557,040 | K50: =VLOOKUP($C50,'[1]징수보고서(지난년도제외)'!$A$3:$O$101,10,FALSE) -> 0 | L50: =VLOOKUP($C50,'[1]징수보고서(지난년도제외)'!$A$3:$O$101,11,FALSE) -> 0 | M50: 1,024,508,130 | N50: 22.11 | O50: 39.74
B51: 변상금 | C51: 변상금 | E51: =VLOOKUP($C51,'[1]징수보고서(지난년도제외)'!$A$3:$O$101,4,FALSE) -> 3,262,270 | F51: =VLOOKUP($C51,'[1]징수보고서(지난년도제외)'!$A$3:$O$101,5,FALSE) -> 58,626,520 | G51: =VLOOKUP($C51,'[1]징수보고서(지난년도제외)'!$A$3:$O$101,6,FALSE) -> 4,992,440 | H51: =VLOOKUP($C51,'[1]징수보고서(지난년도제외)'!$A$3:$O$101,7,FALSE) -> 40,803,176 | I51: =VLOOKUP($C51,'[1]징수보고서(지난년도제외)'!$A$3:$O$101,8,FALSE) -> 0 | J51: =VLOOKUP($C51,'[1]징수보고서(지난년도제외)'!$A$3:$O$101,9,FALSE) -> 0 | K51: =VLOOKUP($C51,'[1]징수보고서(지난년도제외)'!$A$3:$O$101,10,FALSE) -> 0 | L51: =VLOOKUP($C51,'[1]징수보고서(지난년도제외)'!$A$3:$O$101,11,FALSE) -> 0 | M51: 17,823,344 | N51: 153.04 | O51: 69.6
B52: 과태료 | C52: 차량관련과태료 | E52: =VLOOKUP($C52,'[1]징수보고서(지난년도제외)'!$A$3:$O$101,4,FALSE) -> 106,356,880 | F52: =VLOOKUP($C52,'[1]징수보고서(지난년도제외)'!$A$3:$O$101,5,FALSE) -> 1,199,158,600 | G52: =VLOOKUP($C52,'[1]징수보고서(지난년도제외)'!$A$3:$O$101,6,FALSE) -> 59,982,470 | H52: =VLOOKUP($C52,'[1]징수보고서(지난년도제외)'!$A$3:$O$101,7,FALSE) -> 443,951,330 | I52: =VLOOKUP($C52,'[1]징수보고서(지난년도제외)'!$A$3:$O$101,8,FALSE) -> 0 | J52: =VLOOKUP($C52,'[1]징수보고서(지난년도제외)'!$A$3:$O$101,9,FALSE) -> 576,000 | K52: =VLOOKUP($C52,'[1]징수보고서(지난년도제외)'!$A$3:$O$101,10,FALSE) -> 0 | L52: =VLOOKUP($C52,'[1]징수보고서(지난년도제외)'!$A$3:$O$101,11,FALSE) -> 0 | M52: 755,207,270 | N52: 56.4 | O52: 37.02
C53: 기타과태료 | E53: =VLOOKUP($C53,'[1]징수보고서(지난년도제외)'!$A$3:$O$101,4,FALSE) -> 89,152,260 | F53: =VLOOKUP($C53,'[1]징수보고서(지난년도제외)'!$A$3:$O$101,5,FALSE) -> 949,801,690 | G53: =VLOOKUP($C53,'[1]징수보고서(지난년도제외)'!$A$3:$O$101,6,FALSE) -> 59,168,370 | H53: =VLOOKUP($C53,'[1]징수보고서(지난년도제외)'!$A$3:$O$101,7,FALSE) -> 621,938,580 | I53: =VLOOKUP($C53,'[1]징수보고서(지난년도제외)'!$A$3:$O$101,8,FALSE) -> 122,000 | J53: =VLOOKUP($C53,'[1]징수보고서(지난년도제외)'!$A$3:$O$101,9,FALSE) -> 1,073,620 | K53: =VLOOKUP($C53,'[1]징수보고서(지난년도제외)'!$A$3:$O$101,10,FALSE) -> 0 | L53: =VLOOKUP($C53,'[1]징수보고서(지난년도제외)'!$A$3:$O$101,11,FALSE) -> 0 | M53: 327,863,110 | N53: 66.37 | O53: 65.48
B54: 환수금 | C54: 부정이익환수금 | E54: =VLOOKUP($C54,'[1]징수보고서(지난년도제외)'!$A$3:$O$101,4,FALSE) -> 742,000 | F54: =VLOOKUP($C54,'[1]징수보고서(지난년도제외)'!$A$3:$O$101,5,FALSE) -> 34,682,630 | G54: =VLOOKUP($C54,'[1]징수보고서(지난년도제외)'!$A$3:$O$101,6,FALSE) -> 300,000 | H54: =VLOOKUP($C54,'[1]징수보고서(지난년도제외)'!$A$3:$O$101,7,FALSE) -> 14,373,470 | I54: =VLOOKUP($C54,'[1]징수보고서(지난년도제외)'!$A$3:$O$101,8,FALSE) -> 0 | J54: =VLOOKUP($C54,'[1]징수보고서(지난년도제외)'!$A$3:$O$101,9,FALSE) -> 0 | K54: =VLOOKUP($C54,'[1]징수보고서(지난년도제외)'!$A$3:$O$101,10,FALSE) -> 0 | L54: =VLOOKUP($C54,'[1]징수보고서(지난년도제외)'!$A$3:$O$101,11,FALSE) -> 0 | M54: 20,309,160 | N54: 40.43 | O54: 41.44
B55: 부담금 | C55: 부담금 | E55: =VLOOKUP($C55,'[1]징수보고서(지난년도제외)'!$A$3:$O$101,4,FALSE) -> 147,743,070 | F55: =VLOOKUP($C55,'[1]징수보고서(지난년도제외)'!$A$3:$O$101,5,FALSE) -> 2,089,442,930 | G55: =VLOOKUP($C55,'[1]징수보고서(지난년도제외)'!$A$3:$O$101,6,FALSE) -> 81,715,280 | H55: =VLOOKUP($C55,'[1]징수보고서(지난년도제외)'!$A$3:$O$101,7,FALSE) -> 1,491,406,180 | I55: =VLOOKUP($C55,'[1]징수보고서(지난년도제외)'!$A$3:$O$101,8,FALSE) -> 0 | J55: =VLOOKUP($C55,'[1]징수보고서(지난년도제외)'!$A$3:$O$101,9,FALSE) -> 6,450,280 | K55: =VLOOKUP($C55,'[1]징수보고서(지난년도제외)'!$A$3:$O$101,10,FALSE) -> 0 | L55: =VLOOKUP($C55,'[1]징수보고서(지난년도제외)'!$A$3:$O$101,11,FALSE) -> 0 | M55: 598,036,750 | N55: 55.31 | O55: 71.38
B56: 범칙금 | C56: 범칙금 | E56: =VLOOKUP($C56,'[1]징수보고서(지난년도제외)'!$A$3:$O$101,4,FALSE) -> 2,200,000 | F56: =VLOOKUP($C56,'[1]징수보고서(지난년도제외)'!$A$3:$O$101,5,FALSE) -> 35,390,000 | G56: =VLOOKUP($C56,'[1]징수보고서(지난년도제외)'!$A$3:$O$101,6,FALSE) -> 3,900,000 | H56: =VLOOKUP($C56,'[1]징수보고서(지난년도제외)'!$A$3:$O$101,7,FALSE) -> 35,390,000 | I56: =VLOOKUP($C56,'[1]징수보고서(지난년도제외)'!$A$3:$O$101,8,FALSE) -> 0 | J56: =VLOOKUP($C56,'[1]징수보고서(지난년도제외)'!$A$3:$O$101,9,FALSE) -> 0 | K56: =VLOOKUP($C56,'[1]징수보고서(지난년도제외)'!$A$3:$O$101,10,FALSE) -> 0 | L56: =VLOOKUP($C56,'[1]징수보고서(지난년도제외)'!$A$3:$O$101,11,FALSE) -> 0 | M56: 0 | N56: 177.27 | O56: 100
A57: 지난연도 수입 | E57: =E58 -> (37,858,320) | F57: =F58 -> 20,077,415,527 | G57: 519,501,980 | H57: 5,855,901,684 | I57: 4,644,550 | J57: 89,934,841 | K57: 493,159,440 | L57: 769,342,760 | M57: 13,452,171,083 | N57: =N58 -> (1,372.23) | O57: =O58 -> 29.17
B58: 지난연도 수입 | C58: 지난연도 수입 | E58: =[1]지난년도과목!E3 -> (37,858,320) | F58: =[1]지난년도과목!F3 -> 20,077,415,527 | G58: =[1]지난년도과목!G3 -> 519,501,980 | H58: =[1]지난년도과목!H3 -> 5,855,901,684 | I58: =[1]지난년도과목!I3 -> 4,644,550 | J58: =[1]지난년도과목!J3 -> 89,934,841 | K58: =[1]지난년도과목!K3 -> 493,159,440 | L58: =[1]지난년도과목!L3 -> 769,342,760 | M58: =F58-H58-L58 -> 13,452,171,083 | N58: =ROUND(G58/E58*100,2) -> -1372.23 | O58: =ROUND(H58/F58*100,2) -> 29.17
A61: ※ 작성요령
A62: 1. 작성대상 : 일반회계
A63: 2. 작성기준 : 매월 20일까지 전월 자료 세외수입통계정보시스템 징수월보 등록
A64: 3. 제출방법 : 세외수입통계정보시스템
A65: 4. 해당 지자체에서 부과, 징수되는 세외수입은 모두 포함하고, 자료 누락이나 잘못된 값이 들어가지 않도록 자료 작성에 각별히 신경(향후 연감 작업시 검증자료로 활용예정)
A66: 5. 징수결정액은 납부자가 납부해야할 최종 금액으로 부과취소 등 감액분은 제외
A67: 6. 수납액은 납부자가 실제 납부한 금액에서 과오납 환급금을 제외한 금액
A68: 7. 불납결손액은 징수 불가능 금액으로 결손처분한 금액

Sheet Sheet1
